[Event "Fagernes Chess GM-Swiss 2025"]
[Site "Fagernes"]
[Date "2025.04.16"]
[Round "4.31"]
[White "Halvorsen, Benjamin"]
[Black "Den Roover, Nikolay Jorgensen"]
[Result "0-1"]
[Annotator "RC"]
[ECO "D00"]
[WhiteElo "1966"]
[BlackElo "2004"]
[PlyCount "127"]
[EventDate "2025.04.12"]
[EventCountry "NOR"]
[SourceTitle "playchess.com"]
[Source "ChessBase"]
[SourceQuality "1"]
[TimeControl "40/6000+30:2400+30"]

1. d4 {[%emt 0:02:52]} Nf6 {[%emt 0:02:31]} 2. Bg5 {[%emt 0:00:13]} d5 {[%emt 0:03:11]} 3. e3 {[%emt 0:00:13]} Bf5 {[%emt 0:02:02]} 4. c4 {[%emt 0:05:51]} c6 {[%emt 0:27:16]} 5. Qb3 {[%emt 0:04:07]} Qb6 {[%emt 0:11:01]} 6. Qxb6 {[%emt 0:11:14]} axb6 {[%emt 0:00:03]} 7. Bxf6 {[%emt 0:01:00]} exf6 {[%emt 0:07:05]} 8. cxd5 {[%emt 0:04:16]} Bxb1 {[%emt 0:09:07]} 9. Rxb1 {[%emt 0:00:50]} Rxa2 {[%emt 0:00:44]} 10. Bc4 {[%emt 0:08:04]} Ra4 {[%emt 0:06:35]} 11. Bd3 {[%emt 0:08:05]} Bb4+ {[%emt 0:00:57]} 12. Ke2 {[%emt 0:01:01]} O-O {[%emt 0:03:20]} 13. Nh3 {[%emt 0:01:12]} cxd5 {[%emt 0:05:31]} 14. Nf4 {[%emt 0:03:35]} Ra5 {[%emt 0:00:43]} 15. Bc2 {[%emt 0:08:48]} Bd6 {[%emt 0:01:54]} 16. g3 {[%emt 0:05:35]} Nc6 {[%emt 0:02:17]} 17. Bb3 {[%emt 0:04:43]} Ne7 {[%emt 0:02:27]} 18. Rhc1 {[%emt 0:04:52]} Rfa8 {[%emt 0:01:09]} 19. Rc3 {[%emt 0:05:05]} g6 {[%emt 0:01:05]} 20. Bd1 {[%emt 0:05:37]} Kg7 {[%emt 0:02:35]} 21. Rb3 {[%emt 0:01:19]} b5 {[%emt 0:01:46]} 22. Kd2 {[%emt 0:01:21]} b4 {[%emt 0:02:28]} 23. Bf3 {[%emt 0:03:07]} g5 {[%emt 0:00:40]} 24. Nd3 {[%emt 0:01:31]} Nc6 {[%emt 0:00:33]} 25. Rc1 {[%emt 0:11:23]} Rb5 {[%emt 0:04:03]} 26. Nc5 {[%emt 0:00:27]} Na5 {[%emt 0:00:21]} 27. Rd3 {[%emt 0:01:25]} Nc4+ {[%emt 0:01:08]} 28. Ke1 {[%emt 0:00:15]} Bxc5 {[%emt 0:00:48]} 29. dxc5 {[%emt 0:00:22]} Ne5 {[%emt 0:00:25]} 30. Ke2 {[%emt 0:01:11]} Nxd3 {[%emt 0:01:07]} 31. Kxd3 {[%emt 0:00:06]} Rd8 {[%emt 0:06:50]} 32. Kd4 {[%emt 0:00:16]} b3 {[%emt 0:00:50]} 33. Bxd5 {[%emt 0:03:10]} b6 {[%emt 0:00:33]} 34. e4 {[%emt 0:00:18]} Rb4+ {[%emt 0:00:31]} 35. Rc4 {[%emt 0:01:16]} bxc5+ {[%emt 0:01:01]} 36. Kxc5 {[%emt 0:00:09]} Rxc4+ {[%emt 0:00:47]} 37. Kxc4 {[%emt 0:00:13]} h5 {[%emt 0:02:18]} 38. Kxb3 {[%emt 0:00:44]} f5 {[%emt 0:00:12]} 39. Kc3 {[%emt 0:00:52]} fxe4 {[%emt 0:01:08]} 40. Bxe4 {[%emt 0:00:07]} g4 {[%emt 0:00:57]} 41. b4 {[%emt 0:04:14]} Kf6 {[%emt 0:08:43]} 42. b5 {[%emt 0:02:22]} Ke5 {[%emt 0:00:43]} 43. Bg2 {[%emt 0:12:58]} Rd6 {[%emt 0:02:40]} 44. f3 {[%emt 0:06:39]} Rd1 {[%emt 0:08:04]} 45. b6 {[%emt 0:05:49]} Kd6 {[%emt 0:00:15]} 46. b7 {[%emt 0:00:58]} Kc7 {[%emt 0:00:15]} 47. fxg4 {[%emt 0:01:06]} hxg4 {[%emt 0:00:09]} 48. Be4 {[%emt 0:00:36]} Rf1 {[%emt 0:03:58]} 49. Kd3 {[%emt 0:00:54]} f5 {[%emt 0:09:46]} 50. Bg2 {[%emt 0:04:01]} Rf2 {[%emt 0:01:57]} 51. Bd5 {[%emt 0:00:07]} Rxh2 {[%emt 0:02:17]} 52. Ke3 {[%emt 0:00:12]} Rb2 {[%emt 0:01:30]} 53. Kf4 {[%emt 0:00:20]} Rf2+ {[%emt 0:00:24]} 54. Kg5 {[%emt 0:05:42]} Rf1 {[%emt 0:01:14]} 55. Kh4 {[%emt 0:04:38]} Rb1 {[%emt 0:04:25]} 56. Be6 {[%emt 0:00:33]} Rf1 {[%emt 0:00:31]} 57. Bd5 {[%emt 0:00:26]} Rf2 {[%emt 0:01:00]} 58. Kg5 {[%emt 0:00:11]} Rf3 {[%emt 0:00:37]} 59. Kh4 {[%emt 0:00:03]} Rd3 {[%emt 0:00:59]} 60. Be6 {[%emt 0:01:09]} Rf3 {[%emt 0:00:09]} 61. Bd5 {[%emt 0:00:19]} Rf2 {[%emt 0:00:19]} 62. Kg5 {[%emt 0:00:12]} Kb8 {[%emt 0:00:52]} 63. Kh4 {[%emt 0:00:53]} Rf3 {[%emt 0:00:37]} 64. Bc6 {[%emt 0:01:23]} 0-1

[Event "Fagernes Chess GM-Swiss 2025"]
[Site "Fagernes"]
[Date "2025.04.16"]
[Round "4.32"]
[White "Gasland, Lukas Dominik"]
[Black "Hausken, Andreas Skrede"]
[Result "1/2-1/2"]
[Annotator "NA RC"]
[ECO "A37"]
[WhiteElo "1994"]
[BlackElo "2002"]
[PlyCount "61"]
[EventDate "2025.04.12"]
[EventCountry "NOR"]
[SourceTitle "playchess.com"]
[Source "ChessBase"]
[SourceQuality "1"]
[TimeControl "40/6000+30:2400+30"]

1. Nf3 {[%emt 0:02:08]} c5 {[%emt 0:13:59]} 2. g3 {[%emt 0:00:30]} Nc6 {[%emt 0:00:16]} 3. Bg2 {[%emt 0:00:15]} g6 {[%emt 0:01:35]} 4. O-O {[%emt 0:01:23]} Bg7 {[%emt 0:00:00]} 5. c4 {[%emt 0:00:24]} d6 {[%emt 0:00:00]} 6. Nc3 {[%emt 0:02:14]} e5 {[%emt 0:00:19]} 7. d3 {[%emt 0:05:53]} Nge7 {[%emt 0:00:29]} 8. Ne1 {[%emt 0:06:05]} Be6 {[%emt 0:00:13]} 9. e4 {[%emt 0:01:12]} O-O {[%emt 0:03:47]} 10. f4 {[%emt 0:08:45]} Qd7 {[%emt 0:05:13]} 11. Nf3 {[%emt 0:07:39]} Bg4 {[%emt 0:12:40]} 12. Be3 {[%emt 0:02:38]} exf4 {[%emt 0:00:20]} 13. Bxf4 {[%emt 0:02:17]} Nd4 {[%emt 0:00:13]} 14. Qd2 {[%emt 0:02:16]} Nxf3+ {[%emt 0:06:49]} 15. Bxf3 {[%emt 0:00:41]} Bxf3 {[%emt 0:00:03]} 16. Rxf3 {[%emt 0:00:10]} a6 {[%emt 0:09:59]} 17. Bh6 {[%emt 0:06:48]} f5 {[%emt 0:00:14]} 18. Raf1 {[%emt 0:04:14]} fxe4 {[%emt 0:01:40]} 19. Rxf8+ {[%emt 0:01:45]} Rxf8 {[%emt 0:00:08]} 20. Rxf8+ {[%emt 0:00:05]} Bxf8 {[%emt 0:01:51]} 21. Bxf8 {[%emt 0:00:40]} Kxf8 {[%emt 0:00:05]} 22. Qh6+ {[%emt 0:00:06]} Kg8 {[%emt 0:01:46]} 23. Nxe4 {[%emt 0:01:31]} Qf5 {[%emt 0:01:22]} 24. Ng5 {[%emt 0:13:13]} Qf6 {[%emt 0:00:17]} 25. Qxh7+ {[%emt 0:01:05]} Kf8 {[%emt 0:00:01]} 26. Qh4 {[%emt 0:08:13]} Qxb2 {[%emt 0:00:31]} 27. Qf4+ {[%emt 0:01:13]} Nf5 {[%emt 0:00:01]} 28. g4 {[%emt 0:03:41]} Qb1+ {[%emt 0:00:35]} 29. Kg2 {[%emt 0:01:12]} Qc2+ {[%emt 0:00:19]} 30. Kg1 {[%emt 0:00:53]} Qd1+ {[%emt 0:00:11]} 31. Kg2 {[%emt 0:00:17]} 1/2-1/2

[Event "Fagernes Chess GM-Swiss 2025"]
[Site "Fagernes"]
[Date "2025.04.16"]
[Round "4.33"]
[White "Strand, Amund Pihl"]
[Black "Ashwath Kaushik"]
[Result "0-1"]
[Annotator "NA RC"]
[ECO "A22"]
[WhiteElo "1914"]
[BlackElo "1958"]
[PlyCount "74"]
[EventDate "2025.04.12"]
[EventCountry "NOR"]
[SourceTitle "playchess.com"]
[Source "ChessBase"]
[SourceQuality "1"]
[TimeControl "40/6000+30:2400+30"]

1. c4 {[%emt 0:08:41]} e5 {[%emt 0:00:19]} 2. Nc3 {[%emt 0:00:07]} Nf6 {[%emt 0:00:07]} 3. Nf3 {[%emt 0:00:04]} e4 {[%emt 0:00:15]} 4. Ng5 {[%emt 0:02:21]} c6 {[%emt 0:00:09]} 5. d3 {[%emt 0:05:35]} d5 {[%emt 0:10:44]} 6. e3 {[%emt 0:27:51]} h6 {[%emt 0:08:20]} 7. Nh3 {[%emt 0:00:21]} Bb4 {[%emt 0:08:57]} 8. Bd2 {[%emt 0:14:30]} exd3 {[%emt 0:10:22]} 9. Bxd3 {[%emt 0:00:18]} dxc4 {[%emt 0:04:07]} 10. Bxc4 {[%emt 0:00:10]} O-O {[%emt 0:04:41]} 11. Nf4 {[%emt 0:02:30]} Qc7 {[%emt 0:01:54]} 12. O-O {[%emt 0:01:25]} Rd8 {[%emt 0:03:38]} 13. Qc2 {[%emt 0:01:52]} b5 {[%emt 0:03:00]} 14. Bb3 {[%emt 0:05:47]} Bd6 {[%emt 0:09:16]} 15. Rac1 {[%emt 0:05:47]} a6 {[%emt 0:08:35]} 16. a4 {[%emt 0:05:00]} b4 {[%emt 0:04:04]} 17. Nce2 {[%emt 0:00:24]} a5 {[%emt 0:01:03]} 18. Rfd1 {[%emt 0:02:34]} c5 {[%emt 0:02:54]} 19. Ng3 {[%emt 0:04:42]} Nc6 {[%emt 0:04:02]} 20. Nfe2 {[%emt 0:08:36]} Ba6 {[%emt 0:02:44]} 21. Bc4 {[%emt 0:06:36]} Bxc4 {[%emt 0:02:21]} 22. Qxc4 {[%emt 0:00:02]} Ne5 {[%emt 0:02:08]} 23. Qc2 {[%emt 0:00:11]} Nd3 {[%emt 0:04:47]} 24. Qxd3 {[%emt 0:00:43]} Bxg3 {[%emt 0:00:06]} 25. Qf5 {[%emt 0:01:44]} Bxh2+ {[%emt 0:00:12]} 26. Kf1 {[%emt 0:01:50]} Rd5 {[%emt 0:01:58]} 27. Qf3 {[%emt 0:00:12]} Rad8 {[%emt 0:00:18]} 28. Nd4 {[%emt 0:04:05]} Qd7 {[%emt 0:01:33]} 29. Nb3 {[%emt 0:00:26]} Qxa4 {[%emt 0:01:56]} 30. Nxc5 {[%emt 0:00:35]} Qb5+ {[%emt 0:00:11]} 31. Qe2 {[%emt 0:00:07]} Rxc5 {[%emt 0:00:32]} 32. Qxb5 {[%emt 0:00:43]} Rxb5 {[%emt 0:00:05]} 33. g3 {[%emt 0:00:15]} Rbd5 {[%emt 0:00:13]} 34. Ke2 {[%emt 0:00:13]} Ne4 {[%emt 0:00:11]} 35. Be1 {[%emt 0:00:20]} Rxd1 {[%emt 0:00:09]} 36. Rxd1 {[%emt 0:00:06]} Rxd1 {[%emt 0:00:06]} 37. Kxd1 {[%emt 0:00:04]} Bg1 {[%emt 0:00:13]} 0-1

[Event "Fagernes Chess GM-Swiss 2025"]
[Site "Fagernes"]
[Date "2025.04.16"]
[Round "5.1"]
[White "Jumabayev, Rinat"]
[Black "Raja Rithvik R"]
[Result "1/2-1/2"]
[Annotator "TA"]
[ECO "A13"]
[WhiteElo "2549"]
[BlackElo "2538"]
[PlyCount "40"]
[EventDate "2025.04.12"]
[EventCountry "NOR"]
[SourceTitle "playchess.com"]
[Source "ChessBase"]
[SourceQuality "1"]
[TimeControl "40/6000+30:2400+30"]

{[%evp 14,25,25,11,33,0,0,0,0,0,0,0,0,-7]} 1. Nf3 {[%emt 0:02:28]} d5 {[%emt 0:01:40]} 2. g3 {[%emt 0:00:17]} Nf6 {[%emt 0:00:10]} 3. Bg2 {[%emt 0:00:07]} c5 {[%emt 0:00:13]} 4. O-O {[%emt 0:02:20]} e6 {[%emt 0:00:40]} 5. c4 {[%emt 0:06:31]} d4 {[%emt 0:00:26]} 6. e3 {[%emt 0:00:04]} Nc6 {[%emt 0:00:09]} 7. exd4 {[%emt 0:00:03]} cxd4 {[%emt 0:00:05]} 8. d3 {[%emt 0:00:05]} h6 {[%emt 0:00:17] A13: English Opening: 1...e6.} 9. Na3 {[%emt 0:06:40]} Bxa3 {[%emt 0:00:44] The position is equal.} 10. bxa3 {[%emt 0:00:06]} O-O {[%emt 0:00:04]} 11. Re1 {[%emt 0:00:53]} Re8 $1 {[%emt 0:01:23]} 12. Bf4 {[%emt 0:04:07]} Ng4 $1 {[%emt 0:00:23]} 13. Ne5 {[%emt 0:28:27] Not much happened in this game.   Weighted Error Value: White=0.08 (flawless) /Black=0.03 (flawless)   Inaccurate:     	White=1     	---        OK:         	White=2     	Black=1      Best:        	---       	Black=1      Strong:       	---       	Black=2} (13. Nxd4 Nxd4 14. h3 (14. Qxg4 $2 {is the wrong capture.} e5 $19) 14... e5 $17) 13... Ngxe5 $146 14. Bxe5 f6 15. Bf4 e5 16. Bd2 Bf5 17. Rb1 Qd7 18. Qf3 Rab8 19. Qd5+ Qf7 20. Qxf7+ Kxf7 {½-½ Jones,G (2639)-Vidit,S (2739) London Classic 14th 2024 (3)} 1/2-1/2

[Event "Fagernes Chess GM-Swiss 2025"]
[Site "Fagernes"]
[Date "2025.04.16"]
[Round "5.2"]
[White "Kvaloy, Aksel Bu"]
[Black "Urkedal, Frode Olav Olsen"]
[Result "0-1"]
[Annotator "TA"]
[ECO "E01"]
[WhiteElo "2481"]
[BlackElo "2550"]
[PlyCount "96"]
[EventDate "2025.04.12"]
[EventCountry "NOR"]
[SourceTitle "playchess.com"]
[Source "ChessBase"]
[SourceQuality "1"]
[TimeControl "40/6000+30:2400+30"]

{[%evp 9,96,3,12,15,31,20,33,16,26,35,61,-10,20,22,18,14,18,20,13,16,29,23,38,6,8,-15,-10,-27,-34,-29,-32,-52,-52,-44,-49,-72,-69,-66,-79,-105,-110,-168,-122,-113,-117,-106,-68,-145,-162,-199,-195,-248,-239,-253,-248,-360,-360,-436,-427,-491,-484,-708,-698,-593,-518,-509,-357,-373,-354,-387,-387,-332,-352,-375,-374,-374,-367,-602,-595,-599,-599,-595,-589,-585,-562,-717,-714,-605,-568]} 1. d4 {[%emt 0:00:07]} Nf6 {[%emt 0:01:52]} 2. c4 {[%emt 0:00:14]} e6 {[%emt 0:00:06]} 3. g3 {[%emt 0:00:03]} d5 {[%emt 0:00:10]} 4. Bg2 {[%emt 0:00:04]} Bb4+ {[%emt 0:00:05]} 5. Nd2 {[%emt 0:00:04]} Nc6 {[%emt 0:03:40]} 6. Ngf3 {[%emt 0:05:52] E01: Catalan: Early deviations.} a5 {[%emt 0:00:05][%cal Ba7a5,Ba5a4][%mdl 32]} 7. O-O {[%emt 0:00:58]} a4 {[%emt 0:00:06]} 8. Qc2 {[%emt 0:02:17] White is slightly better.} O-O {[%emt 0:00:13]} 9. Rd1 {[%emt 0:01:26]} Bd7 {[%emt 0:00:09]} 10. c5 $146 {[%emt 0:14:49]} (10. a3 $14 Be7 11. e4) (10. Nb1 Be7 11. cxd5 exd5 12. Nc3 Nb4 13. Qb1 g6 14. Bh6 Re8 15. Ne5 Bf5 16. Qc1 {1-0 Yilmaz,M (2634)-Oparin,G (2683) Chess.com Rapid Wk19 Swiss 2022 (2)}) 10... a3 {[%emt 0:07:23]} 11. bxa3 {[%emt 0:02:20]} Bxa3 {[%emt 0:00:19]} 12. Bxa3 {[%emt 0:01:15]} Rxa3 {[%emt 0:00:05]} 13. Nb1 {[%emt 0:12:49]} Ra8 {[%emt 0:13:37]} 14. Nc3 {[%emt 0:00:26]} b6 {[%emt 0:00:05]} 15. cxb6 {[%emt 0:02:41]} cxb6 {[%emt 0:00:06]} 16. Ne5 {[%emt 0:01:26]} Rc8 {[%emt 0:25:54]} 17. Nxc6 {[%emt 0:15:04]} Rxc6 {[%emt 0:04:41]} 18. Qb2 {[%emt 0:02:31]} Qc7 {[%emt 0:01:18]} 19. Nb5 {[%emt 0:04:38]} Rc2 {[%emt 0:00:28]} 20. Qb3 {[%emt 0:01:04]} Qc4 {[%emt 0:10:51]} 21. Qxc4 {[%emt 0:03:03]} Rxc4 {[%emt 0:00:06]} 22. Na3 {[%emt 0:03:30]} Rc3 {[%emt 0:02:18]} 23. Nb1 {[%emt 0:00:09]} Rc2 {[%emt 0:00:09]} 24. Bf3 {[%emt 0:02:11]} Ra8 {[%emt 0:07:51] Black has strong rooks and is better Inhibits Na3.} 25. a3 {[%emt 0:00:38]} (25. Kf1 $17) 25... g5 {[%emt 0:00:05]} (25... b5 $1 $19 {and ...b4 should not be overlooked} 26. Rd2 Rc1+ 27. Kg2 g5) 26. Nd2 $17 {[%emt 0:03:37]} g4 {[%emt 0:03:25]} 27. Bg2 {[%emt 0:00:07]} b5 {[%emt 0:09:56][%cal Ob5b4]} 28. e4 {[%emt 0:10:10] [#]} (28. Nb3 $1 $15) 28... b4 $1 $36 {[%emt 0:00:16][%mdl 2560] Keeping White busy. Black is much more active.} 29. e5 {[%emt 0:02:49]} (29. Nf1 bxa3) 29... Ne8 {[%emt 0:00:27]} 30. Nf1 {[%emt 0:00:52]} (30. a4 $142) 30... bxa3 $19 {[%emt 0:00:56]} (30... Rxa3 31. Ne3 Rcc3 32. Bf1) 31. Ne3 {[%emt 0:00:06]} Rb2 {[%emt 0:00:17]} 32. Nxg4 {[%emt 0:00:37]} (32. Nc4 $142 Rb3 33. Ra2) 32... a2 {[%emt 0:01:18]} 33. Ne3 {[%emt 0:00:51]} Nc7 {[%emt 0:04:03]} 34. Bf1 {[%emt 0:06:52]} Bb5 {[%emt 0:04:31]} 35. Bxb5 {[%emt 0:03:49]} (35. Rdc1 $142 Bxf1 36. Rxf1) 35... Nxb5 {[%emt 0:00:07]} 36. Kg2 {[%emt 0:00:14]} Nc3 {[%emt 0:01:26]} 37. Rdc1 {[%emt 0:00:05]} Rb1 {[%emt 0:00:30]} 38. Rxa2 {[%emt 0:00:11]} Rxa2 {[%emt 0:00:40]} ({And not} 38... Rxc1 39. Rxa8+ Kg7 40. Rc8 $16) 39. Rxc3 {[%emt 0:00:07][%mdl 4096] Endgame KRR-KRN} h5 {[%emt 0:00:31] Wards off Ng4} 40. g4 {[%emt 0:02:33]} Rbb2 {[%emt 0:00:50]} 41. gxh5 {[%emt 0:41:28]} Rxf2+ {[%emt 0:40:08]} 42. Kg3 {[%emt 0:00:06]} Rxh2 {[%emt 0:00:20]} 43. Rc8+ $2 {[%emt 0:00:29]} (43. Ng4 Rag2+ (43... Rxh5 $2 {too greedy.} 44. Nf6+ Kg7 45. Nxh5+ $18) 44. Kf4 (44. Kf3 $2 Rh3+ 45. Kxg2 Rxc3 $19)) 43... Kg7 {[%emt 0:00:07] Black is clearly winning.} 44. Ng4 {[%emt 0:01:28]} Rxh5 {[%emt 0:00:12]} 45. Nf6 {[%emt 0:00:22]} Ra3+ {[%emt 0:00:56]} 46. Kg4 {[%emt 0:01:54] [#]} Rh8 {[%emt 0:00:05]} 47. Nh5+ {[%emt 0:01:34] [#]} Rxh5 $1 {[%emt 0:00:10]} 48. Kxh5 {[%emt 0:00:04]} Rd3 {[%emt 0:00:18] Weighted Error Value: White=0.39/Black=0.13 (very precise)   Mistake:       	White=7     	Black=1      Inaccurate:     	White=2     	Black=3      OK:         	White=16    	Black=21     Best:        	White=2     	Black=1      Brilliant:      	---       	Black=2} 0-1

[Event "Fagernes Chess GM-Swiss 2025"]
[Site "Fagernes"]
[Date "2025.04.16"]
[Round "5.3"]
[White "Makhnev, Denis"]
[Black "Dotzer, Lukas"]
[Result "1/2-1/2"]
[Annotator "TA"]
[ECO "E21"]
[WhiteElo "2537"]
[BlackElo "2453"]
[PlyCount "33"]
[EventDate "2025.04.12"]
[EventCountry "NOR"]
[SourceTitle "playchess.com"]
[Source "ChessBase"]
[SourceQuality "1"]
[TimeControl "40/6000+30:2400+30"]

{[%evp 9,33,11,19,14,6,4,0,4,2,4,12,19,15,20,23,14,3,18,20,18,16,16,9,16,17,9]} 1. d4 {[%emt 0:02:25]} Nf6 {[%emt 0:00:02]} 2. c4 {[%emt 0:00:07]} e6 {[%emt 0:00:04]} 3. Nc3 {[%emt 0:00:07]} Bb4 {[%emt 0:00:04]} 4. Nf3 {[%emt 0:00:06]} Bxc3+ {[%emt 0:02:16]} 5. bxc3 {[%emt 0:00:06][%cal Bb2c3,Bc3d4,Bd4d5][%mdl 32]} d6 {[%emt 0:00:39]} 6. Qc2 {[%emt 0:05:53]} O-O {[%emt 0:04:01]} 7. e4 {[%emt 0:07:59] Black should prevent e5.} e5 {[%emt 0:00:45]} 8. Bd3 {[%emt 0:00:33]} Nc6 {[%emt 0:06:39]} 9. O-O {[%emt 0:14:28]} exd4 {[%emt 0:01:32]} 10. cxd4 {[%emt 0:00:08]} Bg4 {[%emt 0:00:16] Hoping for ...Bxf3.} 11. d5 {[%emt 0:11:03]} Nb4 {[%emt 0:00:17]} 12. Qc3 {[%emt 0:00:08]} Bxf3 {[%emt 0:02:27] The position is equal.} 13. Qxb4 {[%emt 0:00:56]} Bxe4 {[%emt 0:00:58]} 14. Bxe4 {[%emt 0:00:05]} Nxe4 {[%emt 0:00:09]} 15. Qxb7 {[%emt 0:00:06]} Nc5 {[%emt 0:10:42]} 16. Qb4 {[%emt 0:03:38]} Nd3 {[%emt 0:17:01]} 17. Qc3 {[%emt 0:00:17] A rather calm draw.   Weighted Error Value: White=0.02 (flawless) /Black=0.02 (flawless) .  OK:         	White=4     	Black=8      Best:        	White=1     	---} 1/2-1/2

[Event "Fagernes Chess GM-Swiss 2025"]
[Site "Fagernes"]
[Date "2025.04.16"]
[Round "5.4"]
[White "Ghasi, Ameet K"]
[Black "Johansson, Linus"]
[Result "1/2-1/2"]
[Annotator "RC"]
[ECO "A05"]
[WhiteElo "2502"]
[BlackElo "2392"]
[PlyCount "112"]
[EventDate "2025.04.12"]
[EventCountry "NOR"]
[SourceTitle "playchess.com"]
[Source "ChessBase"]
[SourceQuality "1"]
[TimeControl "40/6000+30:2400+30"]

1. Nf3 {[%emt 0:02:34]} Nf6 {[%emt 0:00:08]} 2. g3 {[%emt 0:00:06]} b6 {[%emt 0:00:04]} 3. Bg2 {[%emt 0:00:33]} Bb7 {[%emt 0:00:06]} 4. d3 {[%emt 0:00:26]} g6 {[%emt 0:00:20]} 5. O-O {[%emt 0:00:36]} Bg7 {[%emt 0:00:18]} 6. e4 {[%emt 0:01:05]} d6 {[%emt 0:01:44]} 7. Re1 {[%emt 0:01:49]} O-O {[%emt 0:01:07]} 8. Nbd2 {[%emt 0:00:18]} c5 {[%emt 0:00:22]} 9. c3 {[%emt 0:01:56]} Nc6 {[%emt 0:14:05]} 10. d4 {[%emt 0:13:17]} cxd4 {[%emt 0:00:00]} 11. cxd4 {[%emt 0:00:08]} Rc8 {[%emt 0:00:00]} 12. a3 {[%emt 0:08:28]} Nd7 {[%emt 0:00:00]} 13. Nb3 {[%emt 0:07:10]} e5 {[%emt 0:13:45]} 14. Bg5 {[%emt 0:03:11]} Bf6 {[%emt 0:01:43]} 15. Bh6 {[%emt 0:00:13]} Bg7 {[%emt 0:00:06]} 16. Bg5 {[%emt 0:00:23]} Bf6 {[%emt 0:00:06]} 17. Bh6 {[%emt 0:06:23]} Bg7 {[%emt 0:00:06]} 18. Qd2 {[%emt 0:07:05]} Qe7 {[%emt 0:04:04]} 19. Rad1 {[%emt 0:06:58]} Bxh6 {[%emt 0:02:40]} 20. Qxh6 {[%emt 0:00:06]} Nxd4 {[%emt 0:00:34]} 21. Nbxd4 {[%emt 0:00:54]} exd4 {[%emt 0:00:07]} 22. Nxd4 {[%emt 0:10:46]} Ne5 {[%emt 0:01:36]} 23. h3 {[%emt 0:04:58]} Rc5 {[%emt 0:03:26]} 24. g4 {[%emt 0:05:07]} f6 {[%emt 0:20:54]} 25. f4 {[%emt 0:07:21]} Nc6 {[%emt 0:09:14]} 26. Nf3 {[%emt 0:05:32]} Rc2 {[%emt 0:01:05]} 27. Rd2 {[%emt 0:03:16]} Rxd2 {[%emt 0:06:53]} 28. Nxd2 {[%emt 0:00:02]} Nd4 {[%emt 0:00:06]} 29. Qh4 {[%emt 0:02:18]} g5 {[%emt 0:04:34]} 30. Qg3 {[%emt 0:00:54]} gxf4 {[%emt 0:02:09]} 31. Qxf4 {[%emt 0:00:06]} Qe5 {[%emt 0:00:09]} 32. Qxe5 {[%emt 0:04:44]} dxe5 {[%emt 0:00:16]} 33. Nc4 {[%emt 0:02:07]} Ba6 {[%emt 0:05:07]} 34. Ne3 {[%emt 0:00:15]} Rc8 {[%emt 0:00:40]} 35. Kf2 {[%emt 0:02:42]} Nc2 {[%emt 0:05:13]} 36. Rc1 {[%emt 0:00:37]} Nxe3 {[%emt 0:00:11]} 37. Rxc8+ {[%emt 0:00:04]} Bxc8 {[%emt 0:00:04]} 38. Kxe3 {[%emt 0:00:02]} Kg7 {[%emt 0:00:18]} 39. Bf1 {[%emt 0:01:45]} Kg6 {[%emt 0:01:02]} 40. Kf3 {[%emt 0:00:23]} Bb7 {[%emt 0:00:18]} 41. Bd3 {[%emt 0:42:19]} Bc6 {[%emt 0:41:23]} 42. b4 {[%emt 0:00:46]} Kg7 {[%emt 0:01:53]} 43. Kg3 {[%emt 0:00:36]} h6 {[%emt 0:00:15]} 44. Kh4 {[%emt 0:00:25]} Ba4 {[%emt 0:00:29]} 45. Kg3 {[%emt 0:00:13]} a5 {[%emt 0:01:30]} 46. Kh4 {[%emt 0:00:31]} Bb3 {[%emt 0:00:26]} 47. Kg3 {[%emt 0:00:20]} Ba4 {[%emt 0:00:58]} 48. Kh4 {[%emt 0:00:17]} Bc6 {[%emt 0:00:04]} 49. Kg3 {[%emt 0:00:15]} Kg6 {[%emt 0:00:07]} 50. Kh4 {[%emt 0:00:35]} Bb7 {[%emt 0:00:12]} 51. Kg3 {[%emt 0:00:17]} Kg5 {[%emt 0:00:32]} 52. h4+ {[%emt 0:01:47]} Kg6 {[%emt 0:00:08]} 53. Kf3 {[%emt 0:00:51]} Bc6 {[%emt 0:00:18]} 54. Be2 {[%emt 0:00:46]} Kg7 {[%emt 0:00:09]} 55. Ke3 {[%emt 0:00:25]} Kf8 {[%emt 0:00:40]} 56. Kf3 {[%emt 0:00:21]} Bd7 {[%emt 0:00:41]} 1/2-1/2

[Event "Fagernes Chess GM-Swiss 2025"]
[Site "Fagernes"]
[Date "2025.04.16"]
[Round "5.5"]
[White "Willow, Jonah B"]
[Black "Moksh Amit Doshi"]
[Result "1/2-1/2"]
[Annotator "RC"]
[ECO "C85"]
[WhiteElo "2471"]
[BlackElo "2369"]
[PlyCount "61"]
[EventDate "2025.04.12"]
[EventCountry "NOR"]
[SourceTitle "playchess.com"]
[Source "ChessBase"]
[SourceQuality "1"]
[TimeControl "40/6000+30:2400+30"]

1. e4 {[%emt 0:00:02]} e5 {[%emt 0:08:07]} 2. Nf3 {[%emt 0:00:11]} Nc6 {[%emt 0:00:10]} 3. Bb5 {[%emt 0:00:07]} a6 {[%emt 0:00:09]} 4. Ba4 {[%emt 0:00:05]} Nf6 {[%emt 0:00:09]} 5. O-O {[%emt 0:00:08]} Be7 {[%emt 0:00:07]} 6. Bxc6 {[%emt 0:00:40]} dxc6 {[%emt 0:00:06]} 7. d3 {[%emt 0:00:03]} Bd6 {[%emt 0:00:09]} 8. Nbd2 {[%emt 0:00:07]} Be6 {[%emt 0:00:06]} 9. d4 {[%emt 0:00:57]} Nd7 {[%emt 0:00:09]} 10. dxe5 {[%emt 0:00:04]} Nxe5 {[%emt 0:00:08]} 11. Nxe5 {[%emt 0:00:03]} Bxe5 {[%emt 0:00:11]} 12. f4 {[%emt 0:00:05]} Bd4+ {[%emt 0:05:17]} 13. Kh1 {[%emt 0:00:12]} f6 {[%emt 0:04:32]} 14. c3 {[%emt 0:00:57]} Bb6 {[%emt 0:04:45]} 15. f5 {[%emt 0:00:09]} Bf7 {[%emt 0:01:26]} 16. e5 {[%emt 0:00:23]} fxe5 {[%emt 0:03:40]} 17. Qg4 {[%emt 0:00:08]} Qd5 {[%emt 0:21:46]} 18. Ne4 {[%emt 0:01:31]} O-O-O {[%emt 0:05:54]} 19. Bg5 {[%emt 0:00:54]} h5 {[%emt 0:03:17]} 20. Qf3 {[%emt 0:12:55]} Rde8 {[%emt 0:07:43]} 21. Rfd1 {[%emt 0:02:36]} Qa5 {[%emt 0:02:56]} 22. a4 {[%emt 0:17:14]} Bb3 {[%emt 0:01:38]} 23. Rd3 {[%emt 0:03:04]} c5 {[%emt 0:02:58]} 24. Qh3 {[%emt 1:04:33]} Kb8 {[%emt 0:03:39]} 25. Nd2 {[%emt 0:02:24]} c4 {[%emt 0:01:53]} 26. Nxc4 {[%emt 0:00:11]} Qc5 {[%emt 0:00:39]} 27. Nxb6 {[%emt 0:01:10]} Qxb6 {[%emt 0:01:14]} 28. Rd7 {[%emt 0:00:00]} g6 {[%emt 0:01:33]} 29. Rd2 {[%emt 0:01:42]} gxf5 {[%emt 0:01:39]} 30. Qxf5 {[%emt 0:00:05]} e4 {[%emt 0:05:54]} 31. a5 {[%emt 0:00:01]} 1/2-1/2